fUST/lending_fUST_20240118
["ID","MTS","AMOUNT","RATE_DAILY","PERIOD"]
[311953257,1705514403563,-154.93802479,0.00019846,3]
[311953258,1705514403595,-164.574171,0.00019865,2]
[311953259,1705514403626,-264.020091,0.00020186,2]
[311953260,1705514403656,-248.86039366,0.00020463,2]
[311953261,1705514403687,-5113.40942724,0.00021,2]
[311953262,1705514403717,-194.17033753,0.00021,2]
[311953263,1705514403747,-1546.81985246,0.00021,2]
[311953264,1705514403778,-157.77559155,0.00021184,2]
[311953265,1705514403810,-155.19121382,0.00021184,2]
[311953266,1705514403840,-1142.90076131,0.00021184,2]
[311953267,1705514403862,-154.93802479,0.00021184,2]
[311953268,1705514403875,-164.574171,0.00021184,2]
[311953269,1705514403887,-264.020091,0.00021184,2]
[311953270,1705514403903,-248.86039366,0.00021184,2]
[311953271,1705514403916,-1168.49542391,0.00021184,2]
[311953272,1705514403925,-3944.91400333,0.00021184,2]
[311953273,1705514403937,-102.27640954,0.00021184,2]
[311953274,1705514403947,-91.89392799,0.00021185,2]
[311953275,1705514403966,-552.27527962,0.00021185,2]
[311953276,1705514403977,-994.54457284,0.00021185,2]
[311953277,1705514404003,-157.77559155,0.00021185,2]
[311953278,1705514404015,-155.19121382,0.00021185,2]
[311953279,1705514404026,-753.32956471,0.00021185,2]
[311953280,1705514404036,-389.5711966,0.00021186,2]
[311953281,1705514404048,-1279.68027128,0.00021186,2]
[311953282,1705514441443,-956.91715474,0.00019066,2]
[311953283,1705514441608,-19.52892152,0.00019066,2]
[311953307,1705514795930,-154.95351395,0.00019065,3]
[311953308,1705514795956,-155.02015262,0.00019066,2]
[311953309,1705514795983,-40.09504975,0.00019066,2]
[311953310,1705514796086,-162.09777347,0.00019066,2]
[311953311,1705514805420,-956.91715474,0.00019066,2]
[311953312,1705514805548,-19.52892152,0.00019066,2]
[311953313,1705514807670,154.95351395,0.00019066,3]
[311953314,1705514827088,-156.64531482,0.0002,2]
[311953315,1705514827109,-1815.68321298,0.00021,2]
[311953316,1705514827130,-296.58305175,0.00021184,2]
[311953317,1705514827150,-7173.93965199,0.00021184,2]
[311953318,1705514827170,-154.95351395,0.00021184,2]
[311953319,1705514827190,-360.88239842,0.00021184,2]
[311953320,1705514827215,-237.84642437,0.00021184,2]
[311953321,1705514827234,-594.38972109,0.00021185,2]
[311953322,1705514827253,-690.5951713,0.00021185,2]
[311953323,1705514827275,-575.22057676,0.00021186,2]
[311953324,1705514833083,-154.95351395,0.00019066,3]
[311953325,1705514833104,-1309.88168198,0.00021186,2]
[311953326,1705514948342,-154.95351395,0.00019724,3]
[311953327,1705514948361,-849.41831623,0.00020321,2]
[311953328,1705514948383,-12557.97116982,0.00020322,2]
[311953329,1705514957094,-1847.21,0.00020322,2]
[311953330,1705514957123,-115.17269518,0.00020322,2]
[311953331,1705514961690,154.95351395,0.00019065,3]
[311953332,1705514964098,-669.22807452,0.00020787,2]
[311953333,1705514975090,300.0,0.00020322,2]
[311953334,1705514979685,154.95351395,0.00019065,3]
[311953335,1705514989161,300.0,0.00020322,2]
[311953336,1705514989665,200.0,0.00020322,2]
[311953337,1705514995689,154.95351395,0.00019065,3]
[311953338,1705515005092,300.0,0.00020322,2]
[311953339,1705515005710,7.08676297,0.00020322,2]
[311953454,1705515033269,-154.95351395,0.00019065,3]
[311953455,1705515033279,-192.91323703,0.00020322,2]
[311953456,1705515033289,-2082.34429626,0.00020322,2]
[311953458,1705515033299,-115.76872768,0.00020787,2]
[311953459,1705515033309,-171.1844632,0.00021086,2]
[311953461,1705515033318,-1196.71363385,0.00021185,2]
[311953462,1705515033328,-20657.40132435,0.00021185,2]
[311953470,1705515033437,-28229.24980376,0.00021186,2]
[311953471,1705515033446,-155.0697814,0.00021186,2]
[311953472,1705515033459,-238.93512243,0.00021186,2]
[311953473,1705515033468,-546.87419273,0.00021186,2]
[311953474,1705515033477,-2625.43774623,0.00021186,2]
[311953475,1705515033486,-1560.0644451,0.00021186,2]
[311953476,1705515033495,-1824.28362895,0.00021186,2]
[311953477,1705515033504,-534.31449291,0.00021186,2]
[311953478,1705515033514,-1514.69734841,0.00021187,2]
[311953479,1705515033524,-5673.87021567,0.00021728,2]
[311953480,1705515033533,-151.76085647,0.00021817,2]
[311953481,1705515033544,-2680.19,0.00021875,3]
[311953482,1705515033553,-3216.22,0.00021885,3]
[311953483,1705515033562,-3859.47,0.00021895,3]
[311953484,1705515033571,-1640.43398572,0.00021905,3]
[311953485,1705515033583,-2990.92601428,0.00021905,3]
[311953486,1705515033592,-1992.34914601,0.00021909,2]
[311953487,1705515033602,-1815.68321298,0.00021915,2]
[311953488,1705515033611,-3099.32913741,0.00021916,2]
[311953489,1705515033620,-540.7180897,0.00021917,2]
[311953490,1705515033628,-500.0,0.00021917,2]
[311953491,1705515033638,-500.0,0.00021917,2]
[311953492,1705515033647,-178.3044572,0.00021917,2]
[311953493,1705515033655,-502.26499882,0.00021917,2]
[311953494,1705515033664,-500.0,0.00021917,2]
[311953495,1705515033673,-500.0,0.00021917,2]
[311953496,1705515033682,-500.0,0.00021917,2]
[311953497,1705515033691,-500.0,0.00021917,2]
[311953498,1705515033701,-199.08852864,0.00021917,2]
[311953499,1705515033710,-500.0,0.00021917,2]
[311953500,1705515033719,-500.0,0.00021917,2]
[311953501,1705515033728,-500.0,0.00021917,2]
[311953502,1705515033737,-500.0,0.00021917,2]
[311953503,1705515033746,-488.04280479,0.00021917,2]
[311953504,1705515033755,-500.0,0.00021917,2]
[311953505,1705515033764,-500.0,0.00021917,2]
[311953506,1705515033773,-252.51760587,0.00021917,2]
[311953507,1705515033782,-500.0,0.00021917,2]
[311953508,1705515033791,-492.47036408,0.00021917,2]
[311953509,1705515033803,-7.52963592,0.00021917,2]
[311953510,1705515033812,-500.0,0.00021917,2]
[311953511,1705515033821,-420.10258733,0.00021917,2]
[311953512,1705515033830,-500.0,0.00021917,2]
[311953513,1705515033839,-0.51218173,0.00021917,2]
[311953529,1705515037912,-499.48781827,0.00021917,2]
[311953530,1705515037922,-500.0,0.00021917,2]
[311953531,1705515037931,-500.0,0.00021917,2]
[311953532,1705515037940,-500.0,0.00021917,2]
[311953533,1705515037949,-500.0,0.00021917,2]
[311953534,1705515037958,-500.0,0.00021917,2]
[311953535,1705515037967,-500.0,0.00021917,2]
[311953536,1705515037976,-500.0,0.00021917,2]
[311953537,1705515037985,-500.0,0.00021917,2]
[311953538,1705515037994,-500.0,0.00021917,2]
[311953540,1705515038003,-500.0,0.00021917,2]
[311953542,1705515038013,-500.0,0.00021917,2]
[311953544,1705515038022,-500.0,0.00021917,2]
[311953546,1705515038031,-500.0,0.00021917,2]
[311953547,1705515038040,-500.0,0.00021917,2]
[311953548,1705515038049,-500.0,0.00021917,2]
[311953549,1705515038058,-500.0,0.00021917,2]
[311953550,1705515038067,-500.0,0.00021917,2]
[311953551,1705515038076,-500.0,0.00021917,2]
[311953552,1705515038085,-500.0,0.00021917,2]
[311953553,1705515038094,-500.0,0.00021917,2]
[311953554,1705515038105,-500.0,0.00021917,2]
[311953555,1705515038114,-500.0,0.00021917,2]
[311953556,1705515038124,-624.38263946,0.00021917,2]
[311953557,1705515038133,-575.28227044,0.00021917,2]
[311953558,1705515038142,-500.0,0.00021917,2]
[311953559,1705515038152,-500.0,0.00021917,2]
[311953560,1705515038161,-500.0,0.00021917,2]
[311953561,1705515038171,-500.0,0.00021917,2]
[311953562,1705515038180,-500.0,0.00021917,2]
[311953563,1705515038189,-500.0,0.00021917,2]
[311953564,1705515038198,-500.0,0.00021917,2]
[311953565,1705515038207,-500.0,0.00021917,2]
[311953566,1705515038216,-500.0,0.00021917,2]
[311953567,1705515038225,-500.0,0.00021917,2]
[311953568,1705515038235,-500.0,0.00021917,2]
[311953569,1705515038244,-500.0,0.00021917,2]
[311953570,1705515038252,-500.0,0.00021917,2]
[311953571,1705515038262,-500.0,0.00021917,2]
[311953572,1705515038271,-500.0,0.00021917,2]
[311953573,1705515038280,-500.0,0.00021917,2]
[311953574,1705515038290,-500.0,0.00021917,2]
[311953575,1705515038299,-500.0,0.00021917,2]
[311953576,1705515038309,-500.0,0.00021917,2]
[311953577,1705515038319,-500.0,0.00021917,2]
[311953578,1705515038328,-500.0,0.00021917,2]
[311953579,1705515038337,-500.0,0.00021917,2]
[311953580,1705515038346,-500.0,0.00021917,2]
[311953581,1705515038356,-500.0,0.00021917,2]
[311953582,1705515038365,-500.0,0.00021917,2]
[311953583,1705515038374,-500.0,0.00021917,2]
[311953584,1705515038384,-500.0,0.00021917,2]
[311953585,1705515038393,-500.0,0.00021917,2]
[311953586,1705515038403,-500.0,0.00021917,2]
[311953587,1705515038412,-500.0,0.00021917,2]
[311953588,1705515038421,-500.0,0.00021917,2]
[311953589,1705515038430,-500.0,0.00021917,2]
[311953590,1705515038441,-500.0,0.00021917,2]
[311953591,1705515038453,-500.0,0.00021917,2]
[311953592,1705515038462,-500.0,0.00021917,2]
[311953593,1705515038471,-500.0,0.00021917,2]
[311953594,1705515038480,-500.0,0.00021917,2]
[311953595,1705515038491,-500.0,0.00021917,2]
[311953596,1705515038500,-574.42045533,0.00021917,2]
[311953597,1705515038509,-500.0,0.00021917,2]
[311953598,1705515038518,-500.0,0.00021917,2]
[311953599,1705515038528,-500.0,0.00021917,2]
[311953600,1705515038537,-500.0,0.00021917,2]
[311953601,1705515038547,-500.0,0.00021917,2]
[311953602,1705515038557,-500.0,0.00021917,2]
[311953603,1705515038567,-500.0,0.00021917,2]
[311953604,1705515038577,-500.0,0.00021917,2]
[311953605,1705515038588,-500.0,0.00021917,2]
[311953606,1705515038598,-500.0,0.00021917,2]
[311953607,1705515038608,-12302.52,0.00021917,2]
[311953608,1705515038617,-502.91683953,0.00021917,2]
[311953609,1705515038626,-215.86312279,0.00021917,2]
[311953610,1705515038635,-502.38159096,0.00021917,2]
[311953611,1705515038644,-500.0,0.00021917,2]
[311953612,1705515038653,-500.0,0.00021917,2]
[311953613,1705515038662,-500.0,0.00021917,2]
[311953614,1705515038671,-500.0,0.00021917,2]
[311953615,1705515038680,-293.86444485,0.00021917,2]
[311953616,1705515038690,-500.0,0.00021917,2]
[311953617,1705515038699,-500.0,0.00021917,2]
[311953618,1705515038710,-500.0,0.00021917,2]
[311953619,1705515038719,-500.0,0.00021917,2]
[311953620,1705515038727,-500.0,0.00021917,2]
[311953621,1705515038738,-500.0,0.00021917,2]
[311953622,1705515038748,-500.0,0.00021917,2]
[311953623,1705515038758,-500.0,0.00021917,2]
[311953624,1705515038767,-2707.8,0.00021917,2]
[311953625,1705515038777,-557.42888858,0.00021917,2]
[311953626,1705515038787,-1930.08,0.00021917,2]
[311953627,1705515038797,-164.48532718,0.00021917,2]
[311953628,1705515038807,-500.0,0.00021917,2]
[311953629,1705515038820,-500.0,0.00021917,2]
[311953630,1705515038830,-644.95,0.00021917,2]
[311953631,1705515038841,-500.0,0.00021917,2]
[311953632,1705515038850,-500.0,0.00021917,2]
[311953633,1705515038861,-500.0,0.00021917,2]
[311953634,1705515038870,-500.0,0.00021917,2]
[311953635,1705515038880,-503.01636294,0.00021917,2]
[311953636,1705515038890,-500.0,0.00021917,2]
[311953637,1705515038900,-500.0,0.00021917,2]
[311953638,1705515038910,-500.0,0.00021917,2]
[311953639,1705515038921,-500.0,0.00021917,2]
[311953640,1705515038932,-500.0,0.00021917,2]
[311953641,1705515038941,-500.0,0.00021917,2]
[311953642,1705515038952,-500.0,0.00021917,2]
[311953643,1705515038962,-1338.18,0.00021917,2]
[311953644,1705515038972,-500.0,0.00021917,2]
[311953645,1705515038983,-500.0,0.00021917,2]
[311953646,1705515038994,-500.0,0.00021917,2]
[311953647,1705515039005,-500.0,0.00021917,2]
[311953648,1705515039015,-500.0,0.00021917,2]
[311953649,1705515039025,-500.0,0.00021917,2]
[311953650,1705515039034,-500.0,0.00021917,2]
[311953651,1705515039045,-500.0,0.00021917,2]
[311953652,1705515039055,-535.93108189,0.00021917,2]
[311953653,1705515039066,-500.0,0.00021917,2]
[311953654,1705515039076,-1000.0,0.00021917,2]
[311953655,1705515039085,-500.0,0.00021917,2]
[311953656,1705515039094,-3290.29,0.00021917,2]
[311953657,1705515039103,-509.5,0.00021917,2]
[311953658,1705515039113,-500.0,0.00021917,2]
[311953659,1705515039122,-500.0,0.00021917,2]
[311953660,1705515039131,-500.0,0.00021917,2]
[311953661,1705515039141,-500.0,0.00021917,2]
[311953662,1705515039150,-500.0,0.00021917,2]
[311953663,1705515039159,-500.0,0.00021917,2]
[311953664,1705515039168,-350.0,0.00021917,2]
[311953665,1705515039178,-500.0,0.00021917,2]
[311953666,1705515039258,-500.0,0.00021917,2]
[311953667,1705515039268,-500.0,0.00021917,2]
[311953668,1705515039278,-500.0,0.00021917,2]
[311953669,1705515039287,-500.0,0.00021917,2]
[311953670,1705515039296,-500.0,0.00021917,2]
[311953671,1705515039305,-500.0,0.00021917,2]
[311953672,1705515039314,-500.0,0.00021917,2]
[311953673,1705515039323,-500.0,0.00021917,2]
[311953674,1705515039333,-502.16920952,0.00021917,2]
[311953675,1705515039342,-500.0,0.00021917,2]
[311953676,1705515039351,-500.0,0.00021917,2]
[311953677,1705515039361,-500.0,0.00021917,2]
[311953678,1705515039371,-500.0,0.00021917,2]
[311953679,1705515039379,-500.0,0.00021917,2]
[311953680,1705515039388,-321.69597861,0.00021917,2]
[311953681,1705515039397,-500.0,0.00021917,2]
[311953682,1705515039407,-500.0,0.00021917,2]
[311953683,1705515039416,-500.0,0.00021917,2]
[311953684,1705515039425,-500.0,0.00021917,2]
[311953685,1705515039434,-500.0,0.00021917,2]
[311953686,1705515039443,-500.0,0.00021917,2]
[311953687,1705515039452,-500.0,0.00021917,2]
[311953688,1705515039463,-646.32186224,0.00021917,2]
[311953689,1705515039472,-2689.02,0.00021917,2]
[311953690,1705515039482,-500.0,0.00021917,2]
[311953691,1705515039491,-500.0,0.00021917,2]
[311953692,1705515039499,-500.0,0.00021917,2]
[311953693,1705515039509,-500.0,0.00021917,2]
[311953694,1705515039517,-500.0,0.00021917,2]
[311953695,1705515039526,-500.0,0.00021917,2]
[311953696,1705515039536,-500.0,0.00021917,2]
[311953697,1705515039545,-500.0,0.00021917,2]
[311953698,1705515039554,-500.0,0.00021917,2]
[311953699,1705515039563,-1614.46,0.00021917,2]
[311953700,1705515039572,-501.70820656,0.00021917,5]
[311953701,1705515039581,-500.0,0.00021917,2]
[311953702,1705515039590,-500.0,0.00021917,2]
[311953703,1705515039599,-397.88999285,0.00021917,2]
[311953704,1705515039608,-500.0,0.00021917,2]
[311953705,1705515039619,-500.0,0.00021917,2]
[311953706,1705515039628,-500.0,0.00021917,2]
[311953707,1705515039637,-500.0,0.00021917,2]
[311953708,1705515039646,-500.0,0.00021917,2]
[311953709,1705515039655,-500.0,0.00021917,2]
[311953710,1705515039664,-502.99980085,0.00021917,2]
[311953711,1705515039673,-387.7080178,0.00021917,2]
[311953712,1705515039682,-500.0,0.00021917,2]
[311953713,1705515039690,-500.0,0.00021917,2]
[311953714,1705515039701,-2111.9,0.00021917,2]
[311953715,1705515039710,-500.0,0.00021917,2]
[311953716,1705515039721,-398.41303084,0.00021917,2]
[311953717,1705515039732,-500.0,0.00021917,2]
[311953718,1705515039741,-632.46,0.00021917,2]
[311953719,1705515039750,-500.0,0.00021917,2]
[311953720,1705515039759,-166.666666,0.00021918,2]
[311953721,1705515039769,-879.43811936,0.00021954,2]
[311953722,1705515039778,-425.53656097,0.00022,2]
[311953723,1705515039787,-3955.54830897,0.00022,2]
[311953724,1705515039796,-296.96180065,0.00022,2]
[311953725,1705515039805,-293.1976279,0.00022,4]
[311953726,1705515039817,-957.12041936,0.00022051,2]
[311953727,1705515039827,-154.93802479,0.00022051,2]
[311953728,1705515039837,-500.0,0.00022051,2]
[311953729,1705515039847,-500.0,0.00022052,2]
[311953730,1705515039857,-500.0,0.00022052,2]
[311953731,1705515039866,-725.03,0.00022052,2]
[311953732,1705515039876,-500.0,0.00022052,2]
[311953733,1705515039886,-712.88,0.00022052,2]
[311953734,1705515039895,-500.0,0.00022052,2]
[311953735,1705515039904,-505.14162514,0.00022052,2]
[311953736,1705515039914,-500.0,0.00022052,2]
[311953737,1705515039923,-500.0,0.00022053,2]
[311953738,1705515039933,-500.0,0.00022053,2]
[311953739,1705515039942,-500.0,0.00022054,2]
[311953740,1705515039951,-500.0,0.00022054,2]
[311953741,1705515039962,-500.0,0.00022054,2]
[311953742,1705515039972,-500.0,0.00022054,2]
[311953743,1705515039981,-500.0,0.00022054,2]
[311953744,1705515039990,-500.0,0.00022054,2]
[311953745,1705515039999,-503.98676531,0.00022054,2]
[311953746,1705515040008,-500.0,0.00022054,2]
[311953747,1705515040018,-504.49598516,0.00022054,2]
[311953748,1705515040027,-500.0,0.00022054,2]
[311953749,1705515040036,-500.0,0.00022054,2]
[311953750,1705515040045,-500.0,0.00022054,2]
[311953752,1705515040054,-500.0,0.00022054,2]
[311953753,1705515040063,-500.0,0.00022054,2]
[311953754,1705515040072,-508.60469395,0.00022054,2]
[311953755,1705515040081,-500.0,0.00022054,2]
[311953756,1705515040090,-501.06750293,0.00022054,2]
[311953757,1705515040099,-500.0,0.00022054,2]
[311953759,1705515040108,-500.0,0.00022054,2]
[311953760,1705515040117,-500.0,0.00022054,2]
[311953762,1705515040126,-500.0,0.00022054,2]
[311953763,1705515040135,-500.0,0.00022054,2]
[311953764,1705515040144,-500.0,0.00022054,2]
[311953765,1705515040153,-500.0,0.00022054,2]
[311953766,1705515040162,-500.0,0.00022054,2]
[311953767,1705515040171,-500.0,0.00022054,2]
[311953768,1705515040180,-500.0,0.00022054,2]
[311953769,1705515040190,-500.0,0.00022054,2]
[311953770,1705515040199,-500.0,0.00022054,2]
[311953771,1705515040208,-500.0,0.00022054,2]
[311953772,1705515040217,-500.0,0.00022054,2]
[311953773,1705515040226,-500.0,0.00022054,2]
[311953774,1705515040236,-500.0,0.00022054,2]
[311953775,1705515040245,-500.0,0.00022054,2]
[311953776,1705515040254,-500.0,0.00022054,2]
[311953777,1705515040263,-395.89549653,0.00022054,2]
[311953778,1705515040272,-500.0,0.00022054,2]
[311953779,1705515040281,-503.01602422,0.00022054,2]
[311953780,1705515040290,-500.0,0.00022054,2]
[311953781,1705515040300,-500.0,0.00022054,2]
[311953782,1705515040309,-500.0,0.00022054,2]
[311953783,1705515040319,-500.0,0.00022054,2]
[311953784,1705515040328,-500.0,0.00022054,2]
[311953785,1705515040338,-313.08602602,0.00022054,2]
[311953786,1705515040347,-608.64434299,0.00022054,2]
[311953787,1705515040356,-500.0,0.00022054,2]
[311953788,1705515040365,-518.29322091,0.00022054,2]
[311953789,1705515040374,-500.0,0.00022054,2]
[311953790,1705515040383,-500.0,0.00022054,2]
[311953791,1705515040392,-500.0,0.00022054,2]
[311953792,1705515040401,-512.31621446,0.00022054,2]
[311953793,1705515040411,-500.0,0.00022054,2]
[311953794,1705515040420,-500.0,0.00022054,2]
[311953795,1705515040429,-500.0,0.00022054,2]
[311953796,1705515040438,-583.20336943,0.00022054,2]
[311953797,1705515040447,-500.0,0.00022054,2]
[311953798,1705515040458,-500.0,0.00022054,2]
[311953799,1705515040468,-500.0,0.00022054,2]
[311953800,1705515040477,-500.0,0.00022054,2]
[311953801,1705515040486,-500.0,0.00022054,2]
[311953802,1705515040495,-500.0,0.00022054,2]
[311953803,1705515040504,-500.0,0.00022054,2]
[311953804,1705515040513,-541.59308008,0.00022054,2]
[311953805,1705515040522,-500.0,0.00022054,2]
[311953806,1705515040532,-500.0,0.00022054,2]
[311953807,1705515040542,-500.0,0.00022054,2]
[311953808,1705515040551,-500.0,0.00022054,2]
[311953809,1705515040560,-478.85011104,0.00022054,2]
[311953810,1705515040569,-500.0,0.00022054,2]
[311953811,1705515040578,-226.60879206,0.00022054,2]
[311953812,1705515040587,-507.34473886,0.00022054,2]
[311953813,1705515040596,-500.0,0.00022054,2]
[311953814,1705515040606,-12302.52,0.00022054,2]
[311953815,1705515040614,-439.13477728,0.00022054,2]
[311953816,1705515040624,-500.0,0.00022054,2]
[311953817,1705515040633,-500.0,0.00022054,2]
[311953818,1705515040642,-500.0,0.00022054,2]
[311953819,1705515040651,-500.0,0.00022054,2]
[311953820,1705515040660,-500.0,0.00022054,2]
[311953821,1705515040669,-500.0,0.00022054,2]
[311953822,1705515040678,-500.0,0.00022054,2]
[311953823,1705515040687,-155.65120151,0.00022054,2]
[311953824,1705515040696,-2707.8,0.00022054,2]
[311953825,1705515040705,-1930.08,0.00022054,2]
[311953827,1705515040714,-500.0,0.00022054,2]
[311953828,1705515040723,-500.0,0.00022054,2]
[311953829,1705515040732,-644.95,0.00022054,2]
[311953830,1705515040741,-500.0,0.00022054,2]
[311953831,1705515040750,-500.0,0.00022054,2]
[311953832,1705515040759,-500.0,0.00022054,2]
[311953833,1705515040768,-490.9215493,0.00022054,2]
[311953834,1705515040777,-500.0,0.00022054,2]
[311953835,1705515040786,-500.0,0.00022054,2]
[311953836,1705515040797,-236.06186457,0.00022054,2]
[311953837,1705515040806,-500.0,0.00022054,2]
[311953838,1705515040816,-500.0,0.00022054,2]
[311953839,1705515040826,-1338.18,0.00022054,2]
[311953840,1705515040836,-500.0,0.00022054,2]
[311953841,1705515040847,-500.0,0.00022054,2]
[311953842,1705515040858,-500.0,0.00022054,2]
[311953843,1705515040868,-267.81115023,0.00022054,2]
[311953844,1705515040878,-500.0,0.00022054,2]
[311953845,1705515040888,-500.0,0.00022054,2]
[311953846,1705515040898,-500.0,0.00022054,2]
[311953847,1705515040907,-1000.0,0.00022054,2]
[311953848,1705515040917,-3290.29,0.00022054,2]
[311953849,1705515040927,-509.5,0.00022054,2]
[311953850,1705515040938,-500.0,0.00022054,2]
[311953851,1705515040948,-500.0,0.00022054,2]
[311953852,1705515040957,-500.0,0.00022054,2]
[311953853,1705515040967,-500.0,0.00022054,2]
[311953854,1705515040978,-500.0,0.00022054,2]
[311953855,1705515040989,-500.0,0.00022054,2]
[311953856,1705515041000,-500.0,0.00022054,2]
[311953857,1705515041076,-201.66657356,0.00022054,2]
[311953858,1705515041085,-500.0,0.00022054,2]
[311953859,1705515041095,-500.0,0.00022054,2]
[311953860,1705515041104,-500.0,0.00022054,2]
[311953861,1705515041114,-241.37531993,0.00022054,2]
[311953862,1705515041123,-500.0,0.00022054,2]
[311953863,1705515041133,-500.0,0.00022054,2]
[311953864,1705515041144,-500.0,0.00022054,2]
[311953865,1705515041153,-500.0,0.00022054,2]
[311953866,1705515041162,-500.0,0.00022054,2]
[311953867,1705515041171,-500.0,0.00022054,2]
[311953868,1705515041181,-500.0,0.00022054,2]
[311953869,1705515041191,-500.0,0.00022054,2]
[311953870,1705515041201,-500.0,0.00022054,2]
[311953871,1705515041210,-500.0,0.00022054,2]
[311953872,1705515041222,-500.0,0.00022054,2]
[311953873,1705515041260,-500.0,0.00022054,2]
[311953874,1705515041270,-2689.02,0.00022054,2]
[311953875,1705515041279,-502.5187616,0.00022054,2]
[311953876,1705515041289,-500.0,0.00022054,2]
[311953877,1705515041299,-500.0,0.00022054,2]
[311953878,1705515041309,-500.0,0.00022054,2]
[311953879,1705515041320,-1614.46,0.00022054,2]
[311953880,1705515041330,-500.0,0.00022054,2]
[311953881,1705515041341,-500.0,0.00022054,2]
[311953882,1705515041352,-500.0,0.00022054,2]
[311953883,1705515041362,-500.0,0.00022054,2]
[311953884,1705515041371,-500.0,0.00022054,2]
[311953885,1705515041381,-209.73633126,0.00022054,2]
[311953886,1705515041390,-2111.9,0.00022054,2]
[311953887,1705515041399,-500.0,0.00022054,2]
[311953888,1705515041408,-500.0,0.00022054,2]
[311953889,1705515041417,-151.76085646,0.00022057,2]
[311953890,1705515041427,-500.0,0.00022188,2]
[311953891,1705515041436,-500.0,0.00022189,2]
[311953892,1705515041445,-725.03,0.00022189,2]
[311953893,1705515041454,-500.83532328,0.00022189,2]
[311953894,1705515041469,-712.88,0.00022189,2]
[311953895,1705515041479,-500.0,0.00022189,2]
[311953896,1705515041490,-500.0,0.0002219,2]
[311953897,1705515041500,-500.0,0.0002219,2]
[311953898,1705515041511,-500.0,0.0002219,2]
[311953899,1705515041521,-500.0,0.00022191,2]
[311953900,1705515041531,-500.0,0.00022191,2]
[311953901,1705515041542,-500.0,0.00022191,2]
[311953902,1705515041554,-500.0,0.00022191,2]
[311953903,1705515041563,-500.0,0.00022191,2]
[311953904,1705515041574,-500.0,0.00022191,2]
[311953905,1705515041583,-500.0,0.00022191,2]
[311953906,1705515041593,-500.0,0.00022191,2]
[311953907,1705515041603,-500.0,0.00022191,2]
[311953908,1705515041613,-500.0,0.00022191,2]
[311953909,1705515041622,-500.0,0.00022191,2]
[311953910,1705515041632,-500.0,0.00022191,2]
[311953911,1705515041642,-500.0,0.00022191,2]
[311953912,1705515041652,-500.0,0.00022191,2]
[311953913,1705515041662,-500.0,0.00022191,2]
[311953914,1705515041672,-324.20723267,0.00022191,2]
[311953915,1705515041682,-500.0,0.00022191,2]
[311953916,1705515041692,-500.0,0.00022191,2]
[311953917,1705515041702,-500.0,0.00022191,2]
[311953918,1705515041712,-500.0,0.00022191,2]
[311953919,1705515041721,-500.0,0.00022191,2]
[311953920,1705515041732,-500.0,0.00022191,2]
[311953921,1705515041742,-500.0,0.00022191,2]
[311953922,1705515041752,-500.0,0.00022191,2]
[311953923,1705515041762,-500.0,0.00022191,2]
[311953924,1705515041771,-500.0,0.00022191,2]
[311953925,1705515041783,-500.0,0.00022191,2]